[Event "World Chess Trophy 2018"]
[Site "Tenerife"]
[Date "2018.06.18"]
[Round "3"]
[White "Baete, Guy"]
[Black "Baez Luis, Adrian"]
[Result "1-0"]
[ECO "D05"]
[WhiteElo "1861"]
[BlackElo "1621"]
[Annotator "NA"]
[PlyCount "91"]
[EventDate "2018.06.17"]
[EventType "swiss"]
[EventCountry "ESP"]
[SourceTitle "playchess.com"]
[Source "ChessBase"]
[SourceQuality "1"]
[TimeControl "5400+30"]

{[%evp 25,89,10,32767,32767,32767,32767,32767,32767,32767,32767,32767,32767,32767,32767,119,32767,32767,32767,32767,32767,32767,32767,32767,0,54,32767,86,0,29,29,49,48,51,35,54,32767,214,64,138,123,120,141,166,117,175,110,93,111,277,299,526,32767,32767,32767,32767,951,1262,1279,29990,29991,29991,32767,29992,29993,29993,29994]} 1. d4 {[%emt 0:00:00]} Nf6 {[%emt 0:01:37]} 2. Nf3 {[%emt 0:01:39]} e6 {[%emt 0:01:28]} 3. e3 {[%emt 0:01:10]} d5 {[%emt 0:00:55]} 4. Bd3 {[%emt 0:00:06]} Be7 {[%emt 0:00:21]} 5. O-O {[%emt 0:00:03]} O-O {[%emt 0:00:25]} 6. b3 {[%emt 0:00:09]} c5 {[%emt 0:01:25]} 7. Bb2 {[%emt 0:00:07]} b6 {[%emt 0:04:22]} 8. Nbd2 {[%emt 0:00:19]} Bb7 {[%emt 0:00:35]} 9. Ne5 {[%emt 0:00:19]} Nbd7 {[%emt 0:02:05]} 10. f4 {[%emt 0:00:16]} Rc8 {[%emt 0:06:24]} 11. Ndf3 {[%emt 0:00:14]} Ne8 {[%emt 0:01:35]} 12. Nxd7 {[%emt 0:13:12]} Qxd7 {[%emt 0:00:17]} 13. Ne5 {[%emt 0:00:19]} Qc7 {[%emt 0:01:32]} 14. Rc1 {[%emt 0:04:27]} f6 {[%emt 0:01:46]} 15. Qh5 {[%emt 0:05:01]} f5 {[%emt 0:05:56]} 16. Qe2 {[%emt 0:09:01]} Nd6 {[%emt 0:05:07]} 17. g4 {[%emt 0:01:55]} g6 {[%emt 0:21:16]} 18. c4 {[%emt 0:07:11]} dxc4 {[%emt 0:11:35]} 19. bxc4 {[%emt 0:01:52]} Ne4 {[%emt 0:14:51]} (19... Bf6 $11 {keeps the balance.}) 20. Bxe4 {[%emt 0:05:14]} Bxe4 {[%emt 0:00:31]} 21. g5 {[%emt 0:00:45]} Bd6 {[%emt 0:01:56]} 22. dxc5 {[%emt 0:02:41]} bxc5 {[%emt 0:02:58]} 23. Bc3 {[%emt 0:03:56]} Rfd8 {[%emt 0:00:52]} 24. h4 {[%emt 0:07:49]} Qb7 {[%emt 0:12:41]} 25. Rf2 {[%emt 0:34:45]} Bf8 {[%emt 0:00:30]} (25... Bxe5 $11 26. Bxe5 Rd3) 26. Qb2 {[%emt 0:00:30]} (26. h5 $16) 26... Qxb2 {[%emt 0:00:00]} 27. Rxb2 {[%emt 0:00:00]} Rb8 {[%emt 0:00:00]} 28. Rb5 {[%emt 0:01:00]} a6 {[%emt 0:01:30]} 29. Ra5 {[%emt 0:00:00]} Rb6 {[%emt 0:00:30]} 30. Kf2 {[%emt 0:00:00]} Rdb8 $2 {[%emt 0:00:00]} (30... Be7 $14) 31. Re1 $2 {[%emt 0:00:00]} (31. Nd7 $18) 31... Rb1 {[%emt 0:00:23]} ({Black should try} 31... Rd8 $14) 32. Rxa6 {[%emt 0:00:00]} Rxe1 {[%emt 0:00:19]} 33. Kxe1 {[%emt 0:00:00]} Rb1+ {[%emt 0:00:30]} 34. Ke2 {[%emt 0:00:00]} (34. Kd2 $18) 34... Rh1 {[%emt 0:00:21]} (34... Rc1 $16) 35. Be1 {[%emt 0:00:00]} ({Don't do} 35. Rxe6 $6 Rh2+ 36. Kd1 Rc2 $14) (35. Nd7 $18 Rh2+ 36. Ke1 Rh1+ 37. Kf2) 35... Rh2+ {[%emt 0:00:36]} 36. Bf2 {[%emt 0:00:00]} Bb1 $2 {[%emt 0:00:47]} (36... Rh1 $16 {might work better.}) 37. a4 {[%emt 0:00:00]} ({Don't do} 37. Rxe6 $6 Rh1 $16) 37... Ba2 $2 {[%emt 0:00:32]} (37... Be4 {ist wohl besser.} 38. a5 (38. Rxe6 Rh1 $18) 38... Rh1 39. Rxe6 Ra1) 38. Rxe6 {[%emt 0:00:00]} Bg7 {[%emt 0:00:30]} 39. Re8+ {[%emt 0:00:00]} Bf8 {[%emt 0:00:04]} 40. a5 {[%emt 0:00:00]} Kg7 {[%emt 0:00:35]} 41. a6 {[%emt 0:00:00]} Bd6 {[%emt 0:00:38]} 42. a7 {[%emt 0:00:00]} Bxe5 {[%emt 0:00:24]} 43. a8=Q {[%emt 0:00:00]} Bxc4+ {[%emt 0:00:07]} 44. Kf3 {[%emt 0:00:00]} Rh3+ {[%emt 0:01:04]} 45. Bg3 {[%emt 0:00:00]} Be2+ {[%emt 0:00:38]} 46. Kxe2 {[%emt 0:00:00]} 1-0

[Event "World Chess Trophy 2018"]
[Site "Tenerife"]
[Date "2018.06.18"]
[Round "3"]
[White "Mamani Beltran, Daniel"]
[Black "Pirrello, Christian"]
[Result "0-1"]
[ECO "D31"]
[WhiteElo "1623"]
[BlackElo "1935"]
[Annotator "NA"]
[PlyCount "98"]
[EventDate "2018.06.17"]
[EventType "swiss"]
[EventCountry "ESP"]
[SourceTitle "playchess.com"]
[Source "ChessBase"]
[SourceQuality "1"]
[TimeControl "5400+30"]

1. d4 {[%emt 0:13:06]} d5 {[%emt 0:00:08]} 2. c4 {[%emt 0:00:28]} e6 {[%emt 0:00:06]} 3. Nc3 {[%emt 0:00:07]} c6 {[%emt 0:00:00]} 4. cxd5 {[%emt 0:00:28]} exd5 {[%emt 0:00:08]} 5. Qc2 {[%emt 0:00:06]} Bd6 {[%emt 0:00:15]} 6. Nf3 {[%emt 0:00:47]} Ne7 {[%emt 0:00:18]} 7. e4 {[%emt 0:02:18]} dxe4 {[%emt 0:01:26]} 8. Nxe4 {[%emt 0:00:38]} Bf5 {[%emt 0:02:02]} 9. Nxd6+ {[%emt 0:01:22]} Qxd6 {[%emt 0:00:08]} 10. Bd3 {[%emt 0:00:12]} Bxd3 {[%emt 0:00:18]} 11. Qxd3 {[%emt 0:00:10]} O-O {[%emt 0:00:13]} 12. O-O {[%emt 0:00:19]} f6 {[%emt 0:01:24]} 13. Qb3+ {[%emt 0:05:20]} Nd5 {[%emt 0:00:13]} 14. Be3 {[%emt 0:07:10]} Qb4 {[%emt 0:05:33]} 15. Qxb4 {[%emt 0:07:54]} Nxb4 {[%emt 0:00:12]} 16. Bf4 {[%emt 0:00:32]} Re8 {[%emt 0:02:34]} 17. Rfe1 {[%emt 0:01:49]} Nd7 {[%emt 0:04:28]} 18. a3 {[%emt 0:01:34]} Nd5 {[%emt 0:10:36]} 19. Bd2 {[%emt 0:02:57]} Kf7 {[%emt 0:02:55]} 20. Kf1 {[%emt 0:04:58]} Nf8 {[%emt 0:01:50]} 21. Ng1 {[%emt 0:02:45]} Rxe1+ {[%emt 1:06:13]} 22. Rxe1 {[%emt 0:00:12]} Ne6 {[%emt 0:00:00]} 23. Ne2 {[%emt 0:00:04]} Rd8 {[%emt 0:00:00]} 24. Bc3 {[%emt 0:06:05]} Ne7 {[%emt 0:00:00]} 25. Rd1 {[%emt 0:02:48]} Nf5 {[%emt 0:00:00]} 26. b4 {[%emt 0:01:55]} Nc7 {[%emt 0:00:00]} 27. g4 {[%emt 0:01:01]} Nd6 {[%emt 0:00:00]} 28. Rd3 {[%emt 0:04:30]} b5 {[%emt 0:00:00]} 29. f3 {[%emt 0:02:44]} Nc4 {[%emt 0:00:00]} 30. Bd2 {[%emt 0:00:30]} Ne6 {[%emt 0:00:00]} 31. Bc1 {[%emt 0:01:36]} Ne5 {[%emt 0:00:00]} 32. Rc3 {[%emt 0:10:57]} Nxd4 {[%emt 0:00:00]} 33. Nxd4 {[%emt 0:01:22]} Rxd4 {[%emt 0:00:00]} 34. Be3 {[%emt 0:00:33]} Rd7 {[%emt 0:00:00]} 35. Ke2 {[%emt 0:00:32]} Nc4 {[%emt 0:00:00]} 36. f4 {[%emt 0:01:57]} Re7 {[%emt 0:00:00]} 37. Kf3 $2 {[%emt 0:01:39]} (37. f5 a5 38. bxa5) 37... Rxe3+ {[%emt 0:00:00]} 38. Rxe3 {[%emt 0:00:08]} Nxe3 {[%emt 0:00:00]} 39. Kxe3 {[%emt 0:00:09]} Ke6 {[%emt 0:00:00]} 40. Ke4 {[%emt 0:02:32]} g5 {[%emt 0:00:00]} 41. fxg5 {[%emt 0:02:28]} fxg5 {[%emt 0:00:00]} 42. Kd4 {[%emt 0:00:04]} Kd6 {[%emt 0:00:00]} 43. Ke4 {[%emt 0:00:09]} c5 {[%emt 0:00:00]} 44. bxc5+ {[%emt 0:00:45]} Kxc5 {[%emt 0:00:00]} 45. Kf5 {[%emt 0:00:04]} a5 {[%emt 0:00:00]} 46. Kxg5 {[%emt 0:00:56]} b4 {[%emt 0:00:00]} 47. axb4+ {[%emt 0:00:09]} axb4 {[%emt 0:00:00]} 48. Kh6 {[%emt 0:00:55]} b3 {[%emt 0:00:00]} 49. Kxh7 {[%emt 0:00:05]} b2 {[%emt 0:00:00]} 0-1

[Event "World Chess Trophy 2018"]
[Site "Tenerife"]
[Date "2018.06.19"]
[Round "4"]
[White "Kohlweyer, Bernd"]
[Black "Cacciola, Alfredo"]
[Result "1-0"]
[ECO "E61"]
[WhiteElo "2345"]
[BlackElo "2219"]
[Annotator "ChessBase"]
[PlyCount "63"]
[EventDate "2018.06.17"]
[EventType "swiss"]
[EventCountry "ESP"]
[SourceTitle "playchess.com"]
[Source "ChessBase"]
[SourceQuality "1"]
[TimeControl "5400+30"]

1. d4 {[%emt 0:00:00]} Nf6 {[%emt 0:00:07]} 2. c4 {[%emt 0:00:00]} g6 {[%emt 0:00:05]} 3. Nc3 {[%emt 0:00:50]} Bg7 {[%emt 0:00:06]} 4. Bg5 {[%emt 0:00:29]} O-O {[%emt 0:02:02]} 5. e3 {[%emt 0:00:26]} d6 {[%emt 0:07:43]} 6. Be2 {[%emt 0:00:33]} c5 {[%emt 0:01:28]} 7. Nf3 {[%emt 0:00:27]} h6 {[%emt 0:03:47]} 8. Bh4 {[%emt 0:00:07]} g5 {[%emt 0:02:42]} 9. Bg3 {[%emt 0:00:06]} Nh5 {[%emt 0:00:39]} 10. dxc5 {[%emt 0:03:33]} Nxg3 {[%emt 0:01:00]} 11. hxg3 {[%emt 0:00:02]} dxc5 {[%emt 0:01:49]} 12. Qc2 {[%emt 0:00:16]} f5 {[%emt 0:00:59]} 13. Rd1 {[%emt 0:17:36]} Qe8 {[%emt 0:16:21]} 14. Nd2 {[%emt 0:06:12]} e6 {[%emt 0:06:38]} 15. g4 {[%emt 0:05:34]} f4 {[%emt 0:23:17]} 16. Nb5 {[%emt 0:08:36]} fxe3 {[%emt 0:03:14]} 17. fxe3 {[%emt 0:00:24]} Nc6 {[%emt 0:08:54]} 18. Nf3 {[%emt 0:02:53]} Qe7 {[%emt 0:02:13]} 19. Qe4 {[%emt 0:01:57]} a6 {[%emt 0:01:29]} 20. Bd3 {[%emt 0:25:36]} Rxf3 {[%emt 0:09:18]} 21. gxf3 {[%emt 0:01:36]} axb5 {[%emt 0:00:07]} 22. cxb5 {[%emt 0:03:45]} Ne5 {[%emt 0:01:04]} 23. Bb1 {[%emt 0:00:55]} Bd7 {[%emt 0:05:13]} 24. Qxb7 {[%emt 0:00:38]} Rf8 {[%emt 0:00:23]} 25. Be4 {[%emt 0:00:41]} c4 {[%emt 0:00:39]} 26. O-O {[%emt 0:01:04]} Qc5 {[%emt 0:00:32]} 27. Rxd7 {[%emt 0:01:30]} Qxe3+ {[%emt 0:00:08]} 28. Kg2 {[%emt 0:00:15]} Nxd7 {[%emt 0:00:44]} 29. Qxd7 {[%emt 0:00:07]} Qf4 {[%emt 0:00:55]} 30. Qxe6+ {[%emt 0:00:14]} Kh8 {[%emt 0:00:21]} 31. Qg6 {[%emt 0:19:08]} Kg8 {[%emt 0:02:03]} 32. Bd5+ {[%emt 0:00:30] Kh8Be4 [%clk 0:00:00] Kg8*} 1-0

[Event "World Chess Trophy 2018"]
[Site "Tenerife"]
[Date "2018.06.19"]
[Round "4"]
[White "Kosov, Alexey"]
[Black "Kovacs, Zoltan"]
[Result "1/2-1/2"]
[ECO "C04"]
[WhiteElo "2208"]
[BlackElo "2146"]
[Annotator "NA"]
[PlyCount "54"]
[EventDate "2018.06.17"]
[EventType "swiss"]
[EventCountry "ESP"]
[SourceTitle "playchess.com"]
[Source "ChessBase"]
[SourceQuality "1"]
[TimeControl "5400+30"]

1. e4 {[%emt 0:03:02]} e6 {[%emt 0:00:07]} 2. d4 {[%emt 0:00:32]} d5 {[%emt 0:00:07]} 3. Nd2 {[%emt 0:00:06]} Nc6 {[%emt 0:00:09]} 4. Bb5 {[%emt 0:03:00]} Nf6 {[%emt 0:22:55] C04: French Tarrasch: 3...Nc6} 5. e5 {[%emt 0:04:57]} Nd7 {[%emt 0:00:06]} 6. c3 {[%emt 0:08:52]} Ne7 $146 {[%emt 0:09:22]} ({Predecessor:} 6... Ncb8 7. f4 c5 8. Ne2 Qb6 9. Ba4 Nc6 10. Nf3 cxd4 11. cxd4 Bb4+ 12. Kf2 {0-1 (74) Kovalenko,I (2635)-Stupak,K (2565) Tallinn 2018}) 7. Ne2 {[%emt 0:03:39]} c5 {[%emt 0:02:04]} 8. O-O {[%emt 0:01:51]} cxd4 {[%emt 0:09:19]} 9. cxd4 {[%emt 0:09:23]} Nf5 {[%emt 0:05:30]} 10. Bd3 {[%emt 0:14:00]} Be7 {[%emt 0:02:54]} 11. Nb3 {[%emt 0:11:51]} Nb8 {[%emt 0:04:38]} 12. f4 {[%emt 0:06:50]} h5 {[%emt 0:02:04]} 13. Ng3 {[%emt 0:03:44]} g6 {[%emt 0:00:43]} (13... Nxg3 $11 {keeps the balance.} 14. hxg3 Nc6) 14. Nxf5 {[%emt 0:00:05]} exf5 {[%emt 0:00:40]} 15. Be3 {[%emt 0:00:08]} Nd7 {[%emt 0:06:48]} 16. Rc1 {[%emt 0:00:41]} Nf8 {[%emt 0:00:06]} 17. Qf3 {[%emt 0:02:24]} a6 {[%emt 0:03:57]} 18. Rf2 {[%emt 0:07:30]} Ne6 {[%emt 0:00:51]} 19. Rfc2 {[%emt 0:00:01]} b6 {[%emt 0:01:56]} 20. a3 {[%emt 0:00:42]} Bb7 {[%emt 0:00:22]} 21. h3 {[%emt 0:00:20]} h4 {[%emt 0:02:20]} 22. Qe2 {[%emt 0:01:08]} O-O {[%emt 0:00:25]} 23. Nd2 {[%emt 0:00:11]} Kg7 {[%emt 0:00:26]} 24. Nf3 {[%emt 0:01:03]} Qd7 {[%emt 0:03:24] [#]} (24... Rg8 $14) 25. Qf2 $14 {[%emt 0:00:05]} (25. Nxh4 $1 $16 Bxh4 26. g4) 25... Rh8 {[%emt 0:00:22]} 26. b3 {[%emt 0:00:39]} ({White should play} 26. Qf1 $14) 26... Bxa3 {[%emt 0:01:51]} 27. Ra1 {[%emt 0:00:16]} Be7 $1 {[%emt 0:00:21]} 1/2-1/2

[Event "World Chess Trophy 2018"]
[Site "Tenerife"]
[Date "2018.06.19"]
[Round "4"]
[White "Franco, Victor"]
[Black "De Rosa, Mariagrazia"]
[Result "1/2-1/2"]
[ECO "A29"]
[WhiteElo "2126"]
[BlackElo "2120"]
[Annotator "ChessBase"]
[PlyCount "71"]
[EventDate "2018.06.17"]
[EventType "swiss"]
[EventCountry "ESP"]
[SourceTitle "playchess.com"]
[Source "ChessBase"]
[SourceQuality "1"]
[TimeControl "5400+30"]

1. c4 {[%emt 0:00:00]} e5 {[%emt 0:01:17]} 2. g3 {[%emt 0:00:00]} Nf6 {[%emt 0:00:03]} 3. Bg2 {[%emt 0:00:21]} d5 {[%emt 0:00:07]} 4. cxd5 {[%emt 0:00:55]} Nxd5 {[%emt 0:00:08]} 5. Nc3 {[%emt 0:00:40]} Nb6 {[%emt 0:00:08]} 6. Nf3 {[%emt 0:02:14]} Nc6 {[%emt 0:00:05]} 7. O-O {[%emt 0:01:39]} Be6 {[%emt 0:00:37]} 8. d3 {[%emt 0:00:43]} f6 {[%emt 0:00:07]} 9. a3 {[%emt 0:09:25]} Qd7 {[%emt 0:00:42]} 10. Re1 {[%emt 0:01:24]} g5 {[%emt 0:09:39]} 11. b4 {[%emt 0:09:38]} O-O-O {[%emt 0:04:25]} 12. Be3 {[%emt 0:13:34]} h5 {[%emt 0:14:30]} 13. Ne4 {[%emt 0:04:41]} Be7 {[%emt 0:01:18]} 14. Nc5 {[%emt 0:06:16]} Bxc5 {[%emt 0:00:17]} 15. Bxc5 {[%emt 0:00:39]} h4 {[%emt 0:05:53]} 16. a4 {[%emt 0:05:27]} hxg3 {[%emt 0:19:17]} 17. fxg3 {[%emt 0:02:39]} e4 {[%emt 0:04:49]} 18. dxe4 {[%emt 0:18:06]} Qh7 {[%emt 0:01:50]} 19. Qc1 {[%emt 0:04:26]} Ne5 {[%emt 0:13:04]} 20. Bxb6 {[%emt 0:02:18]} axb6 {[%emt 0:00:56]} 21. a5 {[%emt 0:01:38]} bxa5 {[%emt 0:14:00]} 22. Rxa5 {[%emt 0:01:11]} Kb8 {[%emt 0:02:12]} 23. Qa1 {[%emt 0:03:02]} Nxf3+ {[%emt 0:03:59]} 24. Kf2 {[%emt 0:02:25]} Kc8 {[%emt 0:02:07]} 25. Ra8+ {[%emt 0:04:38]} Kd7 {[%emt 0:00:04]} 26. Rxd8+ {[%emt 0:00:48]} Rxd8 {[%emt 0:01:09]} 27. exf3 {[%emt 0:02:19]} Ke7 {[%emt 0:00:14]} 28. Qc3 {[%emt 0:00:18]} Rd7 {[%emt 0:00:38]} 29. h3 {[%emt 0:00:51]} Qf7 {[%emt 0:00:29]} 30. Qc5+ {[%emt 0:00:51]} Ke8 {[%emt 0:00:10]} 31. Ra1 {[%emt 0:00:21]} Rd6 {[%emt 0:00:39]} 32. Re1 {[%emt 0:01:14]} Rd2+ {[%emt 0:00:34]} 33. Re2 {[%emt 0:00:08]} Rd1 {[%emt 0:00:31]} 34. Re1 {[%emt 0:00:34]} Rd2+ {[%emt 0:00:06]} 35. Re2 {[%emt 0:00:18]} Rd1 {[%emt 0:00:07]} 36. Re1 {[%emt 0:02:19]} 1/2-1/2

[Event "World Chess Trophy 2018"]
[Site "Tenerife"]
[Date "2018.06.19"]
[Round "4"]
[White "Aledo Yanguas, David"]
[Black "Mamani Beltran, Daniel"]
[Result "1-0"]
[ECO "C01"]
[WhiteElo "1986"]
[BlackElo "1623"]
[Annotator "NA"]
[PlyCount "101"]
[EventDate "2018.06.17"]
[EventType "swiss"]
[EventCountry "ESP"]
[SourceTitle "playchess.com"]
[Source "ChessBase"]
[SourceQuality "1"]
[TimeControl "5400+30"]

1. e4 {[%emt 0:00:00]} e6 {[%emt 0:00:10]} 2. d4 {[%emt 0:00:00]} d5 {[%emt 0:00:07]} 3. Bd3 {[%emt 0:00:00]} dxe4 {[%emt 0:00:17]} 4. Bxe4 {[%emt 0:00:00]} Nf6 {[%emt 0:00:07]} 5. Bf3 {[%emt 0:00:00]} c5 {[%emt 0:00:06]} 6. Ne2 {[%emt 0:00:00]} Nc6 {[%emt 0:00:43]} 7. Be3 {[%emt 0:00:05]} Qb6 {[%emt 0:00:24]} 8. dxc5 {[%emt 0:01:48]} Qxb2 {[%emt 0:00:56]} 9. Nbc3 {[%emt 0:00:12]} Nb4 {[%emt 0:01:13]} 10. O-O {[%emt 0:04:40]} Qxc2 {[%emt 0:00:06]} 11. Rb1 {[%emt 0:11:17]} Qxd1 {[%emt 0:02:02]} 12. Rfxd1 {[%emt 0:00:07]} Na6 {[%emt 0:00:10]} 13. c6 {[%emt 0:04:28]} b6 {[%emt 0:03:49]} 14. c7 {[%emt 0:02:51]} Nxc7 {[%emt 0:00:13]} 15. Bxa8 {[%emt 0:00:07]} Nxa8 {[%emt 0:00:07]} 16. Nb5 {[%emt 0:01:26]} Bd7 {[%emt 0:02:29]} 17. Nxa7 {[%emt 0:00:18]} Nd5 {[%emt 0:01:08]} 18. Bd4 {[%emt 0:02:20]} f6 {[%emt 0:09:48]} 19. Ng3 {[%emt 0:02:32]} e5 {[%emt 0:01:43]} 20. Bxe5 {[%emt 0:01:02]} Nb4 {[%emt 0:01:18]} 21. Bd4 {[%emt 0:05:58]} Nxa2 {[%emt 0:01:18]} 22. Bxb6 {[%emt 0:01:22]} Nc3 {[%emt 0:01:52]} 23. Re1+ {[%emt 0:00:05]} Kf7 {[%emt 0:00:07]} 24. Rb3 {[%emt 0:00:09]} Ba4 {[%emt 0:04:31]} 25. Rxc3 {[%emt 0:00:29]} Bb4 {[%emt 0:00:14]} 26. Bd4 {[%emt 0:00:31]} Bxc3 {[%emt 0:02:09]} 27. Bxc3 {[%emt 0:00:05]} Rd8 {[%emt 0:02:07]} 28. Ra1 {[%emt 0:01:14]} Be8 {[%emt 0:01:14]} 29. Ne4 {[%emt 0:00:50]} Nc7 {[%emt 0:03:35]} 30. Ba5 {[%emt 0:02:56]} Rd7 {[%emt 0:03:15]} 31. Nc8 {[%emt 0:03:00]} Nb5 {[%emt 0:01:58]} 32. Re1 {[%emt 0:02:22]} Rd4 {[%emt 0:00:46]} 33. Bb6 {[%emt 0:01:06]} Rd5 {[%emt 0:02:22]} 34. Bc5 {[%emt 0:01:20]} Bd7 {[%emt 0:02:32]} 35. Nb6 {[%emt 0:01:30]} Rd3 {[%emt 0:00:26]} 36. f3 {[%emt 0:02:46]} Bc6 {[%emt 0:02:22]} 37. Nf2 {[%emt 0:00:58]} Rc3 {[%emt 0:01:02]} 38. Bb4 {[%emt 0:01:14]} Rb3 {[%emt 0:00:13]} 39. Bd2 {[%emt 0:00:35]} Nd4 {[%emt 0:00:52]} 40. Nc4 {[%emt 0:00:21]} Kg6 {[%emt 0:01:45]} 41. Na5 {[%emt 0:00:31]} Rb2 {[%emt 0:00:16]} 42. Nxc6 {[%emt 0:01:43]} Nxc6 {[%emt 0:00:11]} 43. Bc3 {[%emt 0:00:24]} Rb3 {[%emt 0:00:42]} 44. Ba1 {[%emt 0:00:33]} Nb4 {[%emt 0:00:49]} 45. Ne4 {[%emt 0:02:50]} Ra3 {[%emt 0:00:53]} 46. Rb1 {[%emt 0:03:29]} Nc2 {[%emt 0:00:35]} 47. Bb2 {[%emt 0:00:14]} Rb3 {[%emt 0:00:08]} 48. Nd2 {[%emt 0:00:07]} Rd3 {[%emt 0:00:13]} 49. Nc4 {[%emt 0:00:35]} Rb3 {[%emt 0:01:58]} 50. Rc1 {[%emt 0:00:45]} Nb4 {[%emt 0:00:14]} 51. Rc3 {[%emt 0:00:51]} 1-0

[Event "World Chess Trophy 2018"]
[Site "Tenerife"]
[Date "2018.06.19"]
[Round "4"]
[White "Efremov, Vladislav"]
[Black "Steiner, Juraj"]
[Result "1-0"]
[ECO "E11"]
[WhiteElo "1968"]
[BlackElo "2001"]
[Annotator "NA"]
[PlyCount "85"]
[EventDate "2018.06.17"]
[EventType "swiss"]
[EventCountry "ESP"]
[SourceTitle "playchess.com"]
[Source "ChessBase"]
[SourceQuality "1"]
[TimeControl "5400+30"]

1. d4 {[%emt 0:00:00]} Nf6 {[%emt 0:03:08]} 2. c4 {[%emt 0:00:00]} e6 {[%emt 0:00:12]} 3. Nf3 {[%emt 0:00:00]} Bb4+ {[%emt 0:00:21]} 4. Bd2 {[%emt 0:00:00]} a5 {[%emt 0:00:22]} 5. g3 {[%emt 0:00:05]} O-O {[%emt 0:00:50]} 6. Bg2 {[%emt 0:00:08]} d6 {[%emt 0:00:42]} 7. O-O {[%emt 0:00:15]} Bxd2 {[%emt 0:00:44]} 8. Nbxd2 {[%emt 0:00:15]} Qe7 {[%emt 0:01:15]} 9. Qc2 {[%emt 0:01:34]} e5 {[%emt 0:06:00]} 10. dxe5 {[%emt 0:02:12] E11: Damenindisch (Bogoljubow-Variante)} (10. e4 c5 11. d5 Nh5 12. Qd1 g6 13. Ne1 Na6 14. a3 Nc7 15. Nd3 b5 16. b4 Ba6 17. Rc1 bxc4 18. Nxc4 Bxc4 19. Rxc4 cxb4 20. axb4 {0-1 (30) Rodriguez Lopez,R (2268)-Czebe,A (2473) Budapest 2016}) 10... dxe5 {[%emt 0:00:26]} 11. Ng5 {[%emt 0:00:08]} h6 {[%emt 0:06:10]} 12. Nge4 {[%emt 0:00:11]} Nbd7 {[%emt 0:00:42]} 13. Nc3 {[%emt 0:04:52]} Nc5 $146 {[%emt 0:03:58]} ({Vorgänger:} 13... c6 14. a3 Nb6 15. Nd1 Be6 16. c5 Nbd5 17. e4 Nc7 {1-0 (32) Ezsol,M (2351)-Szecsi,P (2041) Hungary 2010}) 14. Nb3 {[%emt 0:06:28]} Nxb3 {[%emt 0:07:37]} 15. axb3 {[%emt 0:00:32]} Re8 {[%emt 0:02:27]} 16. Nd5 {[%emt 0:04:36]} Nxd5 {[%emt 0:03:37]} 17. cxd5 {[%emt 0:00:41]} Bg4 {[%emt 0:03:51]} 18. h3 {[%emt 0:02:08]} Bh5 {[%emt 0:00:35]} 19. Rfc1 {[%emt 0:00:24]} Rec8 {[%emt 0:03:56]} 20. d6 {[%emt 0:00:45]} cxd6 {[%emt 0:00:17]} 21. Qxc8+ {[%emt 0:00:03]} Rxc8 {[%emt 0:00:29]} 22. Rxc8+ {[%emt 0:00:04]} Kh7 {[%emt 0:00:12]} 23. g4 {[%emt 0:01:01]} Bg6 {[%emt 0:01:44]} 24. Rxa5 {[%emt 0:00:58]} h5 {[%emt 0:02:41]} 25. Raa8 {[%emt 0:04:53]} Kh6 {[%emt 0:00:16]} 26. Rc4 {[%emt 0:14:02]} e4 {[%emt 0:23:19]} 27. gxh5 {[%emt 0:04:50]} Kxh5 {[%emt 0:02:39]} 28. Rh8+ {[%emt 0:15:00]} Kg5 {[%emt 0:00:26]} 29. h4+ {[%emt 0:03:30]} Kf6 {[%emt 0:00:45]} 30. e3 {[%emt 0:01:53]} Qe5 {[%emt 0:02:36]} 31. Rd4 {[%emt 0:01:45]} Bf5 {[%emt 0:06:48] [#]} 32. Rb8 {[%emt 0:03:25]} (32. Rd8 $1 $16) 32... d5 {[%emt 0:01:52]} 33. Rxb7 {[%emt 0:00:45]} Qd6 {[%emt 0:00:58] [#]} 34. Rb5 $1 {[%emt 0:02:34]} Be6 {[%emt 0:00:47]} 35. Bxe4 {[%emt 0:04:50]} Qc6 {[%emt 0:00:23]} 36. Bd3 {[%emt 0:00:14]} ({But not} 36. Rbxd5 $6 Bxd5 37. Bxd5 Qc1+ 38. Kg2 Ke7 $16) 36... Ke5 {[%emt 0:06:48]} 37. b4 {[%emt 0:03:58]} Qc1+ {[%emt 0:02:40]} 38. Kg2 {[%emt 0:00:14]} Qxb2 {[%emt 0:00:21]} 39. Bc4 {[%emt 0:01:09]} Qc2 {[%emt 0:05:20]} 40. Bxd5 {[%emt 0:00:19]} Bxd5+ {[%emt 0:00:56]} 41. Rbxd5+ $18 {[%emt 0:00:06]} ({Jedoch nicht} 41. Rdxd5+ Ke6 $18) 41... Ke6 {[%emt 0:00:27]} 42. Rd6+ {[%emt 0:00:33]} Ke7 {[%emt 0:00:22]} 43. b5 {[%emt 0:00:52]} 1-0